Cogmind - Beta 13 @@@ ROGUE MODE // 2024.05.02 @ 15:32:02 Player: Cherman0 Result: Destroyed by 56-KSQ(R) with Subdweller Beam Cannon Performance ------------- Evolutions (0) 0 Regions Visited (3) 600 Robots Destroyed (47) 235 Value Destroyed (1012) 1012 Prototype IDs (3) 60 Alien Tech Used (0) 0 Bonus (-9) -9 TOTAL SCORE: 1898 Bonus ------- Friendly Fire -9 Cogmind --------- Core Integrity 0/250 Matter 290/300 Energy 250/250 System Corruption 0% Temperature Cool (9) Movement Treading (320) Ox2 Location -10/Subcaves Parts ------- > --- POWER (1) -------- Ion Engine > --- PROPULSION (2) --- Light Treads Light Treads > --- UTILITY (2) ------ Huge Storage Unit Gun Armor > --- WEAPON (2+2) ----- Subdweller Machine Gun Axe > --- INVENTORY (25) --- Ion Engine Light Nuclear Core Light Treads Light Treads Combat Airjet Disposable Heat Sink High-capacity Matter Pod (200) Improved Terrain Scanner Advanced Targeting Computer Advanced Targeting Computer Advanced Targeting Computer Actuator Array Light Armor Plating Hacking Suite Hacking Suite Improved Trap Extractor (1/6 Blade) Subdweller Laser Subdweller Laser Heavy Particle Cannon Battle Cannon Mini Grenade Launcher Datajack Multitool Explosive Trap EMP Trap Peak State ------------ > --- POWER ------------ Ion Engine > --- PROPULSION ------- Light Treads Light Treads > --- UTILITY ---------- Huge Storage Unit Gun Armor > --- WEAPON ----------- Subdweller Machine Gun Axe > --- INVENTORY -------- Ion Engine Light Nuclear Core Light Treads Light Treads Combat Airjet Disposable Heat Sink High-capacity Matter Pod Improved Terrain Scanner Advanced Targeting Computer Advanced Targeting Computer Advanced Targeting Computer Actuator Array Light Armor Plating Hacking Suite Hacking Suite Improved Trap Extractor Small Laser Subdweller Laser Subdweller Laser Heavy Particle Cannon Mini Grenade Launcher Datajack Multitool Explosive Trap EMP Trap [Rating: 23] Favorites ----------- Power Ion Engine Engine Ion Engine Propulsion Light Treads Treads Light Treads Leg Aluminum Leg Utility Huge Storage Unit Device Sensor Array Storage Huge Storage Unit Protection Light Armor Plating Weapon Light Cannon Energy Gun Small Laser Energy Cannon Heavy Particle Cannon Ballistic Gun Assault Rifle Ballistic Cannon Light Cannon Special Weapon Mining Laser Slashing Weapon Axe Special Melee Weapon Datajack Build | -11 -10 -10 -10 ------- Run | Yrd Mat Min Sub Slots Evolved . | . . . . Power . | . . . . Propulsion . | . . . . Utility . | . . . . Weapon . | . . . . Parts Attached 57 | 4 32 5 16 Power 2 | . 1 . 1 Engine 2 | . 1 . 1 Core . | . . . . Reactor . | . . . . Propulsion 7 | 2 3 . 2 Treads 7 | 2 3 . 2 Leg . | . . . . Wheel . | . . . . Hover . | . . . . Flight . | . . . . Utility 10 | 2 2 2 4 Device 6 | 2 1 2 1 Storage 1 | . 1 . . Processor . | . . . . Hackware . | . . . . Protection 3 | . . . 3 Artifact . | . . . . Weapon 38 | . 26 3 9 Energy Gun 2 | . 2 . . Energy Cannon 1 | . . 1 . Ballistic Gun 10 | . 9 . 1 Ballistic Cannon 19 | . 14 1 4 Launcher . | . . . . Special Weapon 1 | . 1 . . Impact Weapon . | . . . . Slashing Weapon 4 | . . . 4 Piercing Weapon . | . . . . Special Melee Weapon 1 | . . 1 . Unidentified Prototypes 1 | . . . 1 Parts Lost 5 | . . . 5 Power 1 | . . . 1 Propulsion 1 | . . . 1 Utility 2 | . . . 2 Weapon 1 | . . . 1 Highest Loss Streak 2 | . . . 2 To Critical Strikes 1 | . . . 1 Average Slot Usage (%) 98 | . 100 100 93 Engine 13 | . 14 14 13 Treads 27 | . 28 28 26 Device 11 | . 14 14 5 Storage 13 | . 14 14 13 Protection 2 | . . . 7 Energy Gun 1 | . 3 . . Energy Cannon 6 | . . 11 9 Ballistic Gun 4 | . 7 . 5 Ballistic Cannon 13 | . 16 16 7 Slashing Weapon 1 | . . . 3 Naked Turns . | . . . . Heaviest Build 100 | 14 92 100 100 Greatest Support 40 | 40 40 40 40 Greatest Overweight (x) 2 | . 2 2 2 Average Overweight (x) 1 | . 1 2 2 Largest Inventory Capacity 25 | 8 25 25 25 Average Capacity 22 | 8 19 25 25 Most Carried 25 | 7 13 25 25 Average Carried 17 | 4 9 22 24 Final Capacity 25 | 8 25 25 25 Final Carried 25 | 4 13 25 25 Class Distribution -------------------- 100% | Mutant Dominant Class ---------------- Mutant | -10/Materials Mutant | -10/Mines Mutant | -10/Subcaves Resources | -11 -10 -10 -10 ----------- Run | Yrd Mat Min Sub Matter Collected 1711 | 251 612 575 273 Remotely . | . . . . Salvage Created 1433 | 126 546 324 437 Parts 102 | 10 45 12 35 Haulers Intercepted 2 | . 2 . . Recyclers Shooed 1 | . 1 . . Parts Field Recycled . | . . . . Retrieved Matter . | . . . . Parts Self-Destructed 11 | . . . 11 Prevented . | . . . . Kills | -11 -10 -10 -10 ------- Run | Yrd Mat Min Sub Combat Hostiles Destroyed 26 | . 11 3 12 Guns 3 | . 1 . 2 Cannons 23 | . 10 3 10 Classes Destroyed 14 | 2 8 1 3 Worker 2 | . 1 1 . Builder 1 | . 1 . . Tunneler 2 | 2 . . . Hauler 2 | . 2 . . Recycler 7 | 1 3 3 . Mechanic 1 | . 1 . . Operator 3 | . 3 . . Watcher 3 | . 3 . . Swarmer 7 | . 6 . 1 Grunt 8 | . 5 2 1 Sentry 1 | . . . 1 Demolisher 1 | . . 1 . Artisan 2 | . . . 2 Subdweller 9 | . . . 9 Best Kill Streak 4 | 2 4 2 3 Combat Bots Only 4 | . 4 2 3 Max Kills in Single Turn 2 | 1 1 2 1 Gunslinging . | . . . . Exploded . | . . . . Melee . | . . . . Uniques/NPCs Destroyed . | . . . . Combat | -11 -10 -10 -10 -------- Run | Yrd Mat Min Sub Hostile Shots Fired 112 | . 51 9 52 Missed 33 | . 15 1 17 Damage Taken 1275 | . 336 178 761 Core 277 | . 78 10 189 Absorbed by Shields . | . . . . Regen/Repaired (Parts) 54 | . 54 . . Core Remaining (%) 100 | 100 . . . Volleys Fired 137 | 10 79 13 35 Largest 2 | 2 2 2 2 Hottest 119 | 40 100 119 119 Shots Fired 259 | 20 156 26 57 Gun 117 | 20 80 . 17 Cannon 140 | . 74 26 40 Launcher . | . . . . Special 2 | . 2 . . Kinetic 198 | 20 129 13 36 Thermal 61 | . 27 13 21 Explosive . | . . . . Electromagnetic . | . . . . Robot Hit Streak 13 | 6 8 7 13 Robot Miss Streak 4 | 2 4 4 3 Penetration Max . | . . . . Secondary Targets . | . . . . Shots Hit Robots 152 | 11 86 16 39 Core Hits 80 | 5 34 15 26 Critical Kills . | . . . . Critical Parts Destroyed . | . . . . Critical Strikes 1 | . 1 . . Blast 1 | . 1 . . Melee Attacks 16 | . . . 16 Impact . | . . . . Slashing 16 | . . . 16 Piercing . | . . . . Sneak Attacks 2 | . . . 2 Combat Hostiles . | . . . . Follow-up Attacks . | . . . . Damage Inflicted 2514 | 110 1282 314 808 Guns 834 | 110 531 . 193 Cannons 1474 | . 665 314 495 Explosions . | . . . . Melee 120 | . . . 120 Ramming 86 | . 86 . . Kinetic 1746 | 110 1011 164 461 Thermal 562 | . 185 150 227 Explosive . | . . . . Electromagnetic . | . . . . Impact . | . . . . Slashing 120 | . . . 120 Piercing . | . . . . Highest Corruption . | . . . . Average Corruption . | . . . . Corruption Purged . | . . . . Corruption Blocked . | . . . . Overload Shots . | . . . . Overflow Damage 18 | . . . 18 Projectiles . | . . . . Explosions . | . . . . Melee 18 | . . . 18 Knockbacks 14 | . 6 3 5 Impact 1 | . 1 . . Kinetic 13 | . 5 3 5 Secondary . | . . . . Self-Inflicted Damage . | . . . . Shots . | . . . . Rammed 16 | . 16 . . Targets Rammed 20 | . 20 . . Kicked . | . . . . Crushed 4 | . 4 . . Highest Temperature 293 | . 72 293 48 Average Temperature 49 | . 20 110 21 Received Heat Transfer 279 | . 72 51 156 Siege Activations . | . . . . Robots Corrupted . | . . . . Combat Hostiles . | . . . . Parts Fried . | . . . . Impact Corruptions . | . . . . Robots Melted . | . . . . Combat Hostiles . | . . . . Parts Melted 1 | . . . 1 Heat Transferred 980 | . 425 222 333 Parts Sabotaged . | . . . . Parts Stolen . | . . . . Parts Stripped . | . . . . Power Chain Reactions . | . . . . Alert | -11 -10 -10 -10 ------- Run | Yrd Mat Min Sub Peak Influence 168 | 15 168 53 . Initial 28 | . 9 28 . Average 25 | 9 35 11 . Maximum Alert Level . | . . . . Low Security (%) 100 | 100 100 100 . Level 1 . | . . . . Level 2 . | . . . . Level 3 . | . . . . Level 4 . | . . . . Level 5 . | . . . . High Security . | . . . . Max Security . | . . . . Squads Dispatched 2 | . 2 . . Investigation 1 | . 1 . . Extermination . | . . . . Reinforcement 1 | . 1 . . Assault . | . . . . Garrison . | . . . . Intercept . | . . . . Searches Triggered . | . . . . Construction Impeded . | . . . . Haulers Reinforced . | . . . . Active Scanning Responses . | . . . . Cargo Convoy Interrupts . | . . . . Stealth | -11 -10 -10 -10 --------- Run | Yrd Mat Min Sub Distress Signals 1 | . 1 . . Communications Jammed . | . . . . Distress Signals . | . . . . Times Spotted 54 | . 37 3 14 Peak Tracking Total 4 | . 4 2 3 Tactical Retreats 1 | . 1 . . Traps | -11 -10 -10 -10 ------- Run | Yrd Mat Min Sub Traps Triggered 1 | . . . 1 Indirectly . | . . . . Trap Hack Attempts 16 | . . 16 . Triggered . | . . . . Disarmed . | . . . . Reprogrammed 3 | . . 3 . Reused . | . . . . Traps Extracted 3 | . . 3 . Installed . | . . . . Triggered . | . . . . Most Traps Carried 3 | . . 3 3 Machines | -11 -10 -10 -10 ---------- Run | Yrd Mat Min Sub Machines Disabled 1 | . 1 . . Max in Single Turn 1 | . 1 . . Machines Repaired . | . . . . Machines Dismantled . | . . . . Machines Sabotaged . | . . . . Overloaded Fab Kills . | . . . . Hacking | -11 -10 -10 -10 --------- Run | Yrd Mat Min Sub Machines Accessed 11 | . 9 2 . Terminals 8 | . 7 1 . Fabricators . | . . . . Repair Stations 1 | . 1 . . Recycling Units 1 | . 1 . . Scanalyzers . | . . . . Garrison Access . | . . . . Total Hacks 31 | . 27 4 . Successful 17 | . 15 2 . Failed 14 | . 12 2 . Catastrophic 1 | . 1 . . Database Lockouts . | . . . . Manual 25 | . 22 3 . Terminals 25 | . 22 3 . Fabricators . | . . . . Repair Stations 2 | . 2 . . Recycling Units 3 | . 3 . . Scanalyzers . | . . . . Garrison Access . | . . . . Terminal Hacks 8 | . 6 2 . Part Schematic 2 | . 2 . . Robot Analysis 2 | . 1 1 . Prototype ID Bank 1 | . 1 . . Open Door 1 | . . 1 . Terminal Index 1 | . 1 . . Locate Traps 1 | . 1 . . Fabricator Hacks . | . . . . Repair Station Hacks 2 | . 2 . . Scan Component 1 | . 1 . . Repair 1 | . 1 . . Recycling Unit Hacks . | . . . . Scanalyzer . | . . . . Garrison Access Hacks . | . . . . Unauthorized Hacks 7 | . 7 . . Terminals 5 | . 5 . . Assimilate 2 | . 2 . . Botnet 2 | . 2 . . Operators 1 | . 1 . . Fabricators . | . . . . Repair Stations . | . . . . Recycling Units 2 | . 2 . . Reject 1 | . 1 . . Recyclers 1 | . 1 . . Scanalyzers . | . . . . Garrison Access . | . . . . Data Cores Recovered . | . . . . Used . | . . . . Hacking Detections 7 | . 7 . . Full Trace Events 2 | . 2 . . Feedback Events . | . . . . Feedback Blocked . | . . . . Robot Schematics Acquired . | . . . . Robots Built . | . . . . Authchips . | . . . . Time . | . . . . Total Robot Build Rating . | . . . . Part Schematics Acquired 2 | . 2 . . Parts Built . | . . . . Authchips . | . . . . Time . | . . . . Total Part Build Rating . | . . . . Parts Repaired 1 | . 1 . . Time 26 | . 26 . . Parts Recycled . | . . . . Recycled Matter . | . . . . Retrieved Matter . | . . . . Retrieved Components . | . . . . Parts Scanalyzed . | . . . . Part Schematics Acquired . | . . . . Parts Damaged . | . . . . Bothacking | -11 -10 -10 -10 ------------ Run | Yrd Mat Min Sub Used RIF Installer . | . . . . Robots Hacked . | . . . . Non-combat . | . . . . Combat . | . . . . Robot Hacks Applied . | . . . . Relay Couplers Released . | . . . . Fabnet Peak Effective % . | . . . . Robots Rewired . | . . . . Allies Hacked . | . . . . Hacks Repelled . | . . . . Allies | -11 -10 -10 -10 -------- Run | Yrd Mat Min Sub Total Allies 5 | . 2 3 . Largest Group 3 | . 2 3 . Highest-Rated Group 40 | . 20 40 . Highest-Rated Ally 16 | . 10 16 . Total Orders 6 | . . 6 . STAY 3 | . . 3 . FOLLOW 3 | . . 3 . Ally Attacks 7 | . . 7 . Total Damage 73 | . . 73 . Kills . | . . . . Allies Corrupted . | . . . . Allies Melted . | . . . . Intel | -11 -10 -10 -10 ------- Run | Yrd Mat Min Sub Robot Analysis Total 2 | . 1 1 . Derelict Logs Recovered 2 | . . 2 . Drone Launches . | . . . . Drone Recoveries . | . . . . Exploration | -11 -10 -10 -10 ------------- Run | Yrd Mat Min Sub Turns Passed 8845 | 73 3579 2453 2740 Spaces Moved 2721 | 21 1306 693 701 Core . | . . . . Treads 2706 | 6 1306 693 701 Legs 15 | 15 . . . Wheels . | . . . . Hover . | . . . . Flight . | . . . . Fastest Speed 120 | 120 160 320 320 Average Speed 280 | 131 240 320 320 Slowest Speed 320 | 160 320 320 320 Overloaded Moves . | . . . . Propulsion Burnouts . | . . . . Robots Hopped . | . . . . Cave-ins Triggered . | . . . . Exploration Rate (%) 60 | 3 95 99 45 Regions Visited 3 Branch Regions 2 Pre-discovered Areas . | . . . . Known Exits Taken . | . . . . Unknown Exits Taken 3 | 1 1 1 . Scrap Searched 3 | . . 1 2 Spaces Dug 7 | . 2 . 5 Terrain Destroyed 14 | . 2 7 5 Melee 5 | . . . 5 Projectile 9 | . 2 7 . AOE . | . . . . Terrain Rammed . | . . . . Walls Destroyed . | . . . . Machines Disabled . | . . . . Actions | -11 -10 -10 -10 --------- Run | Yrd Mat Min Sub Total 3610 | 50 1547 904 1109 Wait 598 | 9 98 160 331 Move 2718 | 20 1305 692 701 Hop . | . . . . Pick Up 30 | 2 8 14 6 Fast Attach 4 | 1 2 . 1 Attach 6 | 2 . . 4 Detach . | . . . . Swap 47 | 1 30 5 11 Drop 18 | 5 5 4 4 Fire 137 | 10 79 13 35 Melee 16 | . . . 16 Ram . | . . . . Kick . | . . . . Crush 20 | . 20 . . Escape Stasis . | . . . . Rewire . | . . . . Trap 16 | . . 16 . Miscellaneous . | . . . . Route ------- -11/Scrapyard -10/Materials (discovered 6 exits: [*Mat x3] / *Min x2 / [*Sub]) -10/Mines (discovered 4 exits: [*Mat x2] / [*Exi] / [*Sub]) -10/Subcaves (discovered 1 exit: [*Mat]) History --------- Turn | Location | Event 13 | -11/Scrapyard | Discovered new exit (range 2) 74 | -11/Scrapyard | Entered Materials 305 | -10/Materials | Build established: Mutant 801 | -10/Materials | Discovered new exit (range 8) 873 | -10/Materials | Discovered new exit (range 10) 1067 | -10/Materials | Discovered new exit (range 11) 1277 | -10/Materials | Discovered new exit (range 10) 3118 | -10/Materials | Discovered new exit (range 16) 3229 | -10/Materials | Repaired Lgt. Treads 3597 | -10/Materials | Discovered new exit (range 15) 3653 | -10/Materials | Entered Mines 3710 | -10/Mines | Assembled infested the area 3782 | -10/Mines | Assisted by bots powering up and referring to "LRC-V3" 3867 | -10/Mines | Met a Derelict who couldn't figure out how to use a Trap Extractor 4309 | -10/Mines | Discovered new exit (range 7) 4323 | -10/Mines | Lost 3 allies 4613 | -10/Mines | Discovered new exit (range 9) 5181 | -10/Mines | Deemed a non-threat by the Exiles lab entrance 5184 | -10/Mines | Discovered new exit (range 5) 5249 | -10/Mines | Learned 2 Materials zone layouts 5357 | -10/Mines | Learned Materials trap positions 6100 | -10/Mines | Discovered new exit (range 4) 6106 | -10/Mines | Entered Subcaves 6618 | -10/Subcaves | Ambushed by angry Subdweller bent on revenge 6622 | -10/Subcaves | Core integrity fell below 50% 6804 | -10/Subcaves | A swath of the cavern ceiling suddenly collapsed 7300 | -10/Subcaves | Discovered new exit (range 10) 8114 | -10/Subcaves | A Subdweller sparked back to life 8114 | -10/Subcaves | A Subdweller sparked back to life 8116 | -10/Subcaves | Core integrity fell below 20% 8146 | -10/Subcaves | Found Prototype Protection 8147 | -10/Subcaves | Identified Gun Armor 8149 | -10/Subcaves | Attached Gun Armor, gained temporary slots: Weapon x2 8465 | -10/Subcaves | Disturbed a concealed Subdweller 8814 | -10/Subcaves | Shifting Twisted Machinery released Sub. Monowheel 8836 | -10/Subcaves | Shifting Twisted Machinery released Sub. Optics 8846 | -10/Subcaves | Destroyed by 56-KSQ(R) with Subdweller Beam Cannon Last Messages --------------- 08146_ Acquired Prototype Protection. 08147_ Identified Gun Armor. 08149_ Core temporarily expanded with Weapon slot. 08165_ Dropped Sml. Laser. 08165_ Acquired Battle Cannon. 08166_ Acquired 11 matter. 08507_ 3H-YPQ(R) destroyed. 08523_ Acquired 5 matter. 08526_ Acquired 4 matter. 08552_ Searching scrap... 08552_ Found Mak. Shrapnel Gun. 08552_ Found Piercing Trap. 08552_ Found 34 Matter. 08553_ Acquired 34 matter. 08564_ Searching scrap... 08564_ Found Sub. Monowheel. 08564_ Found Piercing Trap. 08564_ Found 21 Matter. Sub. Monowheel falls loose from the Twisted Machinery. Sub. Optics falls loose from the Twisted Machinery. Map ----- +----------------------------------------------------+ | ?????????????????????????????????????????????????? | | ?????????????????????????????????????????????????? | | ?????????????????????????????????????????????????? | | ?????????????????????????????????????????????????? | | ?????????????????????????????????????????????????? | | ?????????????????????????????????????????????????? | | ?????????????????????????????????????????????????? | | ?????????????????????????????????????????????????? | | ?????????????????????????????????????????????????? | | ??????????????????#??????????????????????????????? | | ?????????????????## ?????????????????????????????? | | ?????????????????? ?????????????????????????????? | | ?????????????????# ?????????????????????????????? | | ??????????????? ?# ?????????????????????????????? | | ?????????????? ????????????????????????????? | | ?????????????? ??????####????????????????? | | ????????????? ##### # #????????????????? | | ??????????????# ##????????????????? | | ??????????????# #????????????????? | | ??????????????# " "" ###### ###????????????????? | | ???????????????#=" "" ????## ##??????????????????? | | ???????????????# "" ##??# ##?????????????????? | | ???????????????# "! ##?# #?????????????????? | | ???????????????# "" #?#" ##????????????????? | | ???????????????# ####R### ####?????????????? | | ?????????????????????#""R@ "" # #?????????????? | | ????????????????????##" """ ## ###???????????## | | ????????????????????# ""##" #### #??????????## | | ????????????????????### "##""" #?## ###???????## | | ??????????????????????######"""#??## #???????# | | ???????????????????????????"""##???## ######### | | ??????????????????????????? ###?????## # # # ## | | ???????????????????????????#?????????## # | | ??????????????????????????????????????# ## | | ??????????????????????????????????????## # ######? | | ???????????????????????????????????????#####?????? | | ?????????????????????????????????????????????????? | | ?????????????????????????????????????????????????? | | ?????????????????????????????????????????????????? | | ?????????????? ??????????????????????????????????? | | ???????????? ??????????????????????????????????? | | ???????????? ??????????????????????????????????? | | ??????????## ?????????????????????????????????? | | ??????????# #?????????????????????????????????? | | ????????###"" #??????????????????????????????????? | | ??????### """#???????????????????????????????????? | | ??????#"" """##??????????????????????????????????? | | ???????# # #??????????????????????????????????? | | ???????# #"!""#??????????????????????????????????? | | ?????### ##!%##??????????????????????????????????? | +----------------------------------------------------+ Best States ------------- Heat Dissipation 25 Coolant Potential 50 Energy Generation 10 Energy Capacity 250 Matter Stores 300 Matter Capacity 300 Sight Range 16 Robot Scan Range 14 Terrain Scan Density 10 Armor Coverage 150 Evasion (%) 45 Recoil Reduction 2 Trap Extractor Capacity 6 Item Schematics ----------------- Huge Storage Unit | -10/Materials | Hacked Med. Storage Unit | -10/Materials | Hacked Robot Schematics ------------------ None Fabricated ------------ Nothing Alien Tech Used ----------------- None Achievements -------------- None Challenges ------------ None Game ------ Seed NuclearHeatBrace Manual? 0 Play Time 00:47:08 Cumulative 79.2 hours Start 2024.05.02 @ 10:24:10 End 2024.05.02 @ 15:32:02 Sessions 3 Manual Loads 0 Difficulty Rogue Special Mode None Game No. 51 Rogue 51 Adventurer 0 Explorer 0 Win Type - Total 0 Types 0/0/0/0/0/0/0/0/0 Lore% 29 Gallery% 42 Achievement% 34 Wizard Run 0 Options --------- Layout 0 ASCII 0 Keyboard 0 Movement Numpad Keybinds 1 Fullscreen 1 Font 18/SmallcapsGlow Map View 76x50 Zoom Use 0% Tactical HUD 1 Map Filters NONE Filters NONE Steam 1 RUN: c94f33a1-fb91-4f45-a0d2-79585bc7a731